fUSD/lending_fUSD_20260529
["ID","MTS","AMOUNT","RATE_DAILY","PERIOD"]
[423332425,1780061371000,-199.08728449,0.00010287,2]
[423332427,1780061371000,-175.91137321,0.00010287,2]
[423332426,1780061371000,-443.1513168,0.00010287,2]
[423332429,1780061371000,-500.0,0.00010287,2]
[423332428,1780061371000,-500.0,0.00010287,2]
[423332431,1780061371000,-500.0,0.00010287,2]
[423332430,1780061371000,-500.0,0.00010287,2]
[423332433,1780061371000,-500.0,0.00010287,2]
[423332434,1780061371000,-500.0,0.00010287,2]
[423332432,1780061371000,-161.34214865,0.00010287,2]
[423332436,1780061371000,-270.50787685,0.00010287,2]
[423332435,1780061371000,-500.0,0.00010287,2]
[423332446,1780061371000,-500.0,0.00010287,2]
[423332447,1780061371000,-500.0,0.00010287,2]
[423332445,1780061371000,-500.0,0.00010287,2]
[423332443,1780061371000,-500.0,0.00010287,2]
[423332442,1780061371000,-431.26566619,0.00010287,2]
[423332444,1780061371000,-500.0,0.00010287,2]
[423332439,1780061371000,-270.13456795,0.00010287,2]
[423332440,1780061371000,-500.0,0.00010287,2]
[423332438,1780061371000,-500.0,0.00010287,2]
[423332448,1780061371000,-69.10764271,0.00010287,2]
[423332437,1780061371000,-229.49212315,0.00010287,2]
[423332441,1780061371000,-500.0,0.00010287,2]
[423332452,1780061374000,-171.72,0.00010263,2]
[423332449,1780061374000,-171.72,0.00010096,2]
[423332450,1780061374000,-171.72,0.00010151,2]
[423332451,1780061374000,-171.72,0.00010207,2]
[423332453,1780061374000,-927.79632879,0.0001028,2]
[423332455,1780061374000,-500.0,0.00010287,2]
[423332456,1780061374000,-500.0,0.00010287,2]
[423332457,1780061374000,-500.0,0.00010287,2]
[423332458,1780061374000,-500.0,0.00010287,2]
[423332459,1780061374000,-500.0,0.00010287,2]
[423332454,1780061374000,-430.89235729,0.00010287,2]
[423332460,1780061374000,-454.43131392,0.00010287,2]
[423332470,1780061375000,-500.0,0.00010287,2]
[423332468,1780061375000,-500.0,0.00010287,2]
[423332469,1780061375000,-500.0,0.00010287,2]
[423332467,1780061375000,-500.0,0.00010287,2]
[423332466,1780061375000,-500.0,0.00010287,2]
[423332465,1780061375000,-172.96251576,0.00010287,2]
[423332464,1780061375000,-500.0,0.00010287,2]
[423332462,1780061375000,-500.0,0.00010287,2]
[423332461,1780061375000,-45.56868608,0.00010287,2]
[423332463,1780061375000,-500.0,0.00010287,2]
[423332472,1780061375000,-281.46879816,0.00010287,2]
[423332479,1780061375000,-500.0,0.00010287,2]
[423332474,1780061375000,-500.0,0.00010287,2]
[423332471,1780061375000,-500.0,0.00010287,2]
[423332483,1780061375000,-281.46879816,0.00010287,2]
[423332481,1780061375000,-500.0,0.00010287,2]
[423332482,1780061375000,-500.0,0.00010287,2]
[423332480,1780061375000,-500.0,0.00010287,2]
[423332484,1780061375000,-218.53120184,0.00010287,2]
[423332478,1780061375000,-500.0,0.00010287,2]
[423332475,1780061375000,-500.0,0.00010287,2]
[423332476,1780061375000,-500.0,0.00010287,2]
[423332473,1780061375000,-218.53120184,0.00010287,2]
[423332477,1780061375000,-500.0,0.00010287,2]
[423332486,1780061376000,-500.0,0.00010287,2]
[423332485,1780061376000,-500.0,0.00010287,2]
[423332487,1780061376000,-500.0,0.00010287,2]
[423332488,1780061376000,-500.0,0.00010287,2]
[423332489,1780061376000,-500.0,0.00010287,2]
[423332492,1780061376000,-500.0,0.00010287,2]
[423332490,1780061376000,-500.0,0.00010287,2]
[423332491,1780061376000,-500.0,0.00010287,2]
[423332493,1780061376000,-500.0,0.00010287,2]
[423332494,1780061376000,-281.46879816,0.00010287,2]
[423332500,1780061376000,-1159.50089012,0.00010287,2]
[423332497,1780061376000,-1485.24242207,0.00010287,2]
[423332495,1780061376000,-218.53120184,0.00010287,2]
[423332509,1780061376000,-1485.24242207,0.00010287,2]
[423332506,1780061376000,-615.22815633,0.00010287,2]
[423332503,1780061376000,-870.01426574,0.00010287,2]
[423332502,1780061376000,-1485.24242207,0.00010287,2]
[423332501,1780061376000,-1485.24242207,0.00010287,2]
[423332499,1780061376000,-325.74153195,0.00010287,2]
[423332498,1780061376000,-1485.24242207,0.00010287,2]
[423332496,1780061376000,-1485.24242207,0.00010287,2]
[423332511,1780061377000,-1414.28699953,0.00010287,2]
[423332510,1780061377000,-1485.24242207,0.00010287,2]
[423332512,1780061377000,-70.95542254,0.00010287,2]
[423332514,1780061377000,-1485.24242207,0.00010287,2]
[423332513,1780061377000,-1485.24242207,0.00010287,2]
[423332516,1780061377000,-473.31731125,0.00010287,2]
[423332517,1780061377000,-1011.92511082,0.00010287,2]
[423332519,1780061377000,-1485.24242207,0.00010287,2]
[423332518,1780061377000,-1485.24242207,0.00010287,2]
[423332520,1780061377000,-1017.59004504,0.00010287,2]
[423332515,1780061377000,-1485.24242207,0.00010287,2]
[423332524,1780061378000,-1485.24242207,0.00010287,2]
[423332521,1780061378000,-467.65237703,0.00010287,2]
[423332522,1780061378000,-1485.24242207,0.00010287,2]
[423332523,1780061378000,-1485.24242207,0.00010287,2]
[423332528,1780061378000,-1485.24242207,0.00010287,2]
[423332526,1780061378000,-1408.62206531,0.00010287,2]
[423332527,1780061378000,-1485.24242207,0.00010287,2]
[423332529,1780061378000,-620.89309055,0.00010287,2]
[423332525,1780061378000,-76.62035676,0.00010287,2]
[423332537,1780061379000,-1485.24242207,0.00010287,2]
[423332531,1780061379000,-1485.24242207,0.00010287,2]
[423332530,1780061379000,-864.34933152,0.00010287,2]
[423332532,1780061379000,-1485.24242207,0.00010287,2]
[423332533,1780061379000,-1165.16582434,0.00010287,2]
[423332534,1780061379000,-320.07659773,0.00010287,2]
[423332535,1780061379000,-1485.24242207,0.00010287,2]
[423332536,1780061379000,-1485.24242207,0.00010287,2]
[423332544,1780061379000,-1571.5286906,0.00010287,2]
[423332539,1780061379000,-1261.04628601,0.00010287,2]
[423332541,1780061379000,-1571.5286906,0.00010287,2]
[423332540,1780061379000,-1571.5286906,0.00010287,2]
[423332542,1780061379000,-595.89633279,0.00010287,2]
[423332543,1780061379000,-975.63235781,0.00010287,2]
[423332546,1780061379000,-881.31026099,0.00010287,2]
[423332545,1780061379000,-1571.5286906,0.00010287,2]
[423332538,1780061379000,-224.19613606,0.00010287,2]
[423332547,1780061380000,-690.21842961,0.00010287,2]
[423332548,1780061380000,-1571.5286906,0.00010287,2]
[423332550,1780061380000,-1166.72418919,0.00010287,2]
[423332549,1780061380000,-1571.5286906,0.00010287,2]
[423332551,1780061382000,-404.80450141,0.00010287,2]
[423332555,1780061382000,-119.39057321,0.00010287,2]
[423332552,1780061382000,-1571.5286906,0.00010287,2]
[423332553,1780061382000,-1571.5286906,0.00010287,2]
[423332554,1780061382000,-1452.13811739,0.00010287,2]
[423332556,1780061382000,-1571.5286906,0.00010287,2]
[423332559,1780061382000,-166.02335499,0.00010287,2]
[423332557,1780061382000,-1571.5286906,0.00010287,2]
[423332558,1780061382000,-1571.5286906,0.00010287,2]
[423332563,1780061382000,-3444.49466439,0.00010289,2]
[423332562,1780061382000,-150.0,0.00010287,2]
[423332560,1780061382000,1000.0,0.00027397,120]
[423332561,1780061382000,-1405.50533561,0.00010287,2]
[423332564,1780061383000,-5000.0,0.00010289,2]
[423332565,1780061384000,-5000.0,0.00010289,2]
[423332566,1780061385000,-5000.0,0.00010289,2]
[423332570,1780061386000,-5000.0,0.00010289,2]
[423332569,1780061386000,-3800.0,0.00010289,2]
[423332568,1780061386000,-1200.0,0.00010287,2]
[423332567,1780061386000,-5000.0,0.00010289,2]
[423332571,1780061387000,-376.56839596,0.00010289,2]
[423332573,1780061387000,-300.0,0.00010298,2]
[423332572,1780061387000,-300.0,0.00010298,2]
[423332574,1780061387000,-1200.0,0.00010298,2]
[423332576,1780061387000,-2628.20432155,0.000103,2]
[423332577,1780061387000,-5000.0,0.000103,2]
[423332575,1780061387000,-195.22728249,0.00010299,2]
[423332584,1780061388000,-171.72,0.00010543,2]
[423332578,1780061388000,-610.94712943,0.000103,2]
[423332579,1780061388000,-150.99,0.000103,2]
[423332581,1780061388000,-171.72,0.00010375,2]
[423332580,1780061388000,-171.72,0.00010319,2]
[423332582,1780061388000,-171.72,0.00010431,2]
[423332583,1780061388000,-171.72,0.00010487,2]
[423332585,1780061388000,-171.72,0.00010599,2]
[423332586,1780061388000,-500.0,0.00010627,2]
[423332587,1780061388000,-318.06,0.00010627,2]
[423332596,1780061388000,-565.53445677,0.00010895,2]
[423332591,1780061388000,-171.72,0.00010767,2]
[423332590,1780061388000,-171.72,0.00010711,2]
[423332589,1780061388000,-171.72,0.00010655,2]
[423332592,1780061388000,-215.5484138,0.00010801,2]
[423332593,1780061388000,-171.72,0.00010822,2]
[423332595,1780061388000,-250.0,0.00010883,2]
[423332597,1780061388000,-5000.0,0.00010895,2]
[423332598,1780061388000,-5000.0,0.000103,2]
[423332588,1780061388000,-500.0,0.00010642,2]
[423332594,1780061388000,-171.72,0.00010878,2]
[423332601,1780061390000,-5000.0,0.000103,2]
[423332599,1780061390000,-4999.99,0.000103,2]
[423332600,1780061390000,-0.01,0.000103,2]
[423332605,1780061408000,-1200.0,0.00010287,2]
[423332604,1780061408000,-250.0,0.00010018,2]
[423332608,1780061408000,-201.91626554,0.00010288,2]
[423332609,1780061408000,-2898.08373446,0.000103,2]
[423332607,1780061408000,-150.0,0.00010287,2]
[423332606,1780061408000,-300.0,0.00010287,2]
[423332614,1780061410000,-3950.53373446,0.00010895,2]
[423332613,1780061410000,-1049.46626554,0.00010627,2]
[423332612,1780061410000,-950.53373446,0.00010627,2]
[423332611,1780061410000,-299.99,0.000103,2]
[423332610,1780061410000,-3749.47626554,0.000103,2]
[423332618,1780061411000,-5000.0,0.00010895,2]
[423332617,1780061411000,-5000.0,0.00010895,2]
[423332616,1780061411000,-3599.47462117,0.00010895,2]
[423332615,1780061411000,-1400.52537883,0.00010287,2]
[423332621,1780061412000,-5000.0,0.00010895,2]
[423332619,1780061412000,-5000.0,0.00010895,2]
[423332622,1780061414000,-5000.0,0.00010895,2]
[423332623,1780061414000,-5000.0,0.00010895,2]
[423332624,1780061415000,-5000.0,0.00010895,2]
[423332625,1780061418000,-5000.0,0.00010895,2]
[423332626,1780061421000,-5000.0,0.00010895,2]
[423332627,1780061422000,-5000.0,0.00010895,2]
[423332628,1780061426000,2000.0,0.000108,3]
[423332630,1780061427000,-400.0,0.00010895,2]
[423332629,1780061427000,-2000.0,0.000108,2]
[423332635,1780061431000,-335.43209493,0.000103,2]
[423332637,1780061431000,-48477.0271876,0.00010895,2]
[423332647,1780061431000,-4033.89,0.0001115,2]
[423332639,1780061431000,-166.44,0.00010946,2]
[423332640,1780061431000,-150.0,0.00010959,2]
[423332641,1780061431000,-171.72,0.0001099,2]
[423332636,1780061431000,-19664.55790507,0.000103,2]
[423332645,1780061431000,-1365.51,0.00011077,2]
[423332642,1780061431000,-250.0,0.00010992,2]
[423332643,1780061431000,-250.0,0.00010992,2]
[423332644,1780061431000,-171.72,0.00011046,2]
[423332646,1780061431000,-171.72,0.00011102,2]
[423332648,1780061431000,-171.72,0.00011158,2]
[423332650,1780061431000,-255.0,0.00011305,2]
[423332649,1780061431000,-500.0,0.00011193,2]
[423332638,1780061431000,-171.72,0.00010934,2]
[423332656,1780061432000,-2000.0,0.00011709,2]
[423332661,1780061432000,-167.05,0.0001195,2]
[423332653,1780061432000,-8465.0,0.00011404,2]
[423332663,1780061432000,-2000.0,0.00011955,2]
[423332651,1780061432000,-200.0,0.00011307,2]
[423332652,1780061432000,-1680.0,0.00011316,2]
[423332654,1780061432000,-166.44,0.00011548,2]
[423332665,1780061432000,-166.44,0.0001215,2]
[423332666,1780061432000,-6545.86279996,0.00012286,2]
[423332659,1780061432000,-26653.9519,0.00011878,2]
[423332655,1780061432000,-3090.0,0.00011568,2]
[423332668,1780061432000,-433.0,0.00012427,2]
[423332667,1780061432000,-1243.19,0.00012329,2]
[423332671,1780061432000,-438.12,0.00012507,2]
[423332669,1780061432000,-2351.0,0.00012447,2]
[423332670,1780061432000,-2977.6383708,0.00012507,2]
[423332657,1780061432000,-6545.86279998,0.0001185,2]
[423332685,1780061437000,-2200.0,0.000126,4]
[423332682,1780061437000,-5000.0,0.00012507,2]
[423332679,1780061437000,-9999.99,0.000103,2]
[423332686,1780061437000,-400.0,0.000126,4]
[423332687,1780061437000,-706.40305457,0.00012606,3]
[423332683,1780061437000,-2500.0,0.00012507,2]
[423332684,1780061437000,-6349.52,0.00012513,2]
[423332681,1780061437000,-1380.98990592,0.00012507,2]
[423332688,1780061437000,-500.0,0.00012606,2]
[423332680,1780061437000,-11493.82669908,0.00012507,2]
[423332744,1780061438000,-500.0,0.00013698,2]
[423332718,1780061438000,-11493.82669908,0.00013305,2]
[423332717,1780061438000,-6117.08347444,0.00013305,2]
[423332719,1780061438000,-150.0,0.00013317,2]
[423332723,1780061438000,-150.0,0.00013488,2]
[423332722,1780061438000,-150.0,0.00013488,2]
[423332721,1780061438000,-1494.03,0.00013358,2]
[423332731,1780061438000,-11493.82669908,0.00013571,2]
[423332730,1780061438000,-6117.08347444,0.00013571,2]
[423332729,1780061438000,-150.0,0.00013488,2]
[423332728,1780061438000,-150.0,0.00013488,2]
[423332726,1780061438000,-150.0,0.00013488,2]
[423332732,1780061438000,-150.0,0.00013576,2]
[423332734,1780061438000,-736.0,0.00013651,2]
[423332733,1780061438000,-6545.86279996,0.00013593,2]
[423332736,1780061438000,-150.0,0.00013664,2]
[423332740,1780061438000,-500.0,0.00013698,2]
[423332727,1780061438000,-150.0,0.00013488,2]
[423332738,1780061438000,-3292.0,0.00013692,2]
[423332742,1780061438000,-500.0,0.00013698,2]
[423332755,1780061438000,-500.0,0.00013698,2]
[423332757,1780061438000,-500.0,0.00013698,2]
[423332762,1780061438000,-500.0,0.00013698,2]
[423332759,1780061438000,-500.0,0.00013698,2]
[423332761,1780061438000,-500.0,0.00013698,2]
[423332751,1780061438000,-500.0,0.00013698,2]
[423332753,1780061438000,-500.0,0.00013698,2]
[423332752,1780061438000,-500.0,0.00013698,2]
[423332720,1780061438000,-1000.0,0.00013358,2]
[423332725,1780061438000,-150.0,0.00013488,2]
[423332724,1780061438000,-150.0,0.00013488,2]
[423332746,1780061438000,-500.0,0.00013698,2]
[423332690,1780061438000,-445.5295,0.00012607,2]
[423332689,1780061438000,-2000.0,0.00012607,2]
[423332691,1780061438000,-22219.25759998,0.00012607,2]
[423332693,1780061438000,-804.10765902,0.00012607,2]
[423332694,1780061438000,-808.27328049,0.00012607,2]
[423332692,1780061438000,-554.16325965,0.00012607,2]
[423332696,1780061438000,-1893.36669256,0.00012607,2]
[423332697,1780061438000,-1472292.365637,0.00012607,2]
[423332695,1780061438000,-1428.4658713,0.00012607,2]
[423332698,1780061438000,-33230.1787,0.00012607,2]
[423332699,1780061438000,-4500.0,0.000127,4]
[423332701,1780061438000,-202.69591255,0.00012706,3]
[423332716,1780061438000,-2000.0,0.00013284,2]
[423332712,1780061438000,-1600.0,0.000129,4]
[423332711,1780061438000,-9000.0,0.000129,4]
[423332702,1780061438000,-1358.54243293,0.00012706,3]
[423332705,1780061438000,-166.44,0.00012752,2]
[423332703,1780061438000,-681715.1553945,0.00012707,2]
[423332706,1780061438000,-209.09056759,0.00012765,2]
[423332707,1780061438000,-6117.08347444,0.00012773,2]
[423332710,1780061438000,-1200.0,0.000128,4]
[423332708,1780061438000,-11493.82669908,0.00012773,2]
[423332704,1780061438000,-6545.86279996,0.00012721,2]
[423332709,1780061438000,-6700.0,0.000128,4]
[423332714,1780061438000,-11493.82669908,0.00013039,2]
[423332713,1780061438000,-6117.08347444,0.00013039,2]
[423332715,1780061438000,-6545.86279996,0.00013157,2]
[423332700,1780061438000,-800.0,0.000127,4]
[423332754,1780061438000,-500.0,0.00013698,2]
[423332786,1780061438000,-500.0,0.00013698,2]
[423332749,1780061438000,-500.0,0.00013698,2]
[423332835,1780061438000,-150.0,0.00014105,2]
[423332831,1780061438000,-6117.08347444,0.00014102,2]
[423332817,1780061438000,-166.66,0.00013973,2]
[423332833,1780061438000,-11493.82669908,0.00014102,2]
[423332815,1780061438000,-150.0,0.00013928,2]
[423332821,1780061438000,-265.75961111,0.00014,30]
[423332837,1780061438000,-166.66,0.0001411,2]
[423332839,1780061438000,-150.0,0.00014193,2]
[423332849,1780061438000,-293.71228,0.00014341,2]
[423332841,1780061438000,-150.0,0.00014237,2]
[423332845,1780061438000,-166.66,0.00014247,2]
[423332851,1780061438000,-207.696544,0.00014341,2]
[423332847,1780061438000,-150.0,0.00014281,2]
[423332843,1780061438000,-150.0,0.00014237,2]
[423332748,1780061438000,-500.0,0.00013698,2]
[423332859,1780061438000,-150.0,0.00014369,2]
[423332855,1780061438000,-6117.08347444,0.00014368,2]
[423332853,1780061438000,-1910.948038,0.00014341,2]
[423332861,1780061438000,-166.66,0.00014384,2]
[423332865,1780061438000,-6545.86279996,0.00014464,2]
[423332867,1780061438000,-11300.0,0.000145,5]
[423332869,1780061438000,-2000.0,0.000145,5]
[423332863,1780061438000,-150.0,0.00014457,2]
[423332871,1780061438000,-150.0,0.00014546,2]
[423332873,1780061438000,-2200.0,0.000146,5]
[423332875,1780061438000,-400.0,0.000146,5]
[423332878,1780061438000,-150.0,0.00014612,2]
[423332823,1780061438000,-250.0,0.00014,2]
[423332819,1780061438000,-287.82533043,0.00013989,2]
[423332857,1780061438000,-11493.82669908,0.00014368,2]
[423332829,1780061438000,-349.99,0.00014052,2]
[423332825,1780061438000,-150.0,0.00014017,2]
[423332750,1780061438000,-500.0,0.00013698,2]
[423332763,1780061438000,-500.0,0.00013698,2]
[423332764,1780061438000,-500.0,0.00013698,2]
[423332767,1780061438000,-500.0,0.00013698,2]
[423332770,1780061438000,-585.9151148,0.00013698,2]
[423332768,1780061438000,-500.0,0.00013698,2]
[423332772,1780061438000,-500.0,0.00013698,2]
[423332774,1780061438000,-500.0,0.00013698,2]
[423332776,1780061438000,-500.0,0.00013698,2]
[423332780,1780061438000,-500.0,0.00013698,2]
[423332782,1780061438000,-500.0,0.00013698,2]
[423332778,1780061438000,-500.0,0.00013698,2]
[423332790,1780061438000,-500.0,0.00013698,2]
[423332784,1780061438000,-500.0,0.00013698,2]
[423332798,1780061438000,-1088.59,0.000137,2]
[423332813,1780061438000,-150.0,0.00013862,2]
[423332792,1780061438000,-1421.99,0.00013699,2]
[423332827,1780061438000,-6545.86279996,0.00014029,2]
[423332810,1780061438000,-150.0,0.0001384,2]
[423332806,1780061438000,-6117.08347444,0.00013836,2]
[423332800,1780061438000,-1380.98990592,0.00013704,2]
[423332812,1780061438000,-150.0,0.00013862,2]
[423332804,1780061438000,-166.66,0.00013836,2]
[423332788,1780061438000,-500.0,0.00013698,2]
[423332794,1780061438000,-200.0,0.00013699,2]
[423332796,1780061438000,-166.66,0.00013699,2]
[423332808,1780061438000,-11493.82669908,0.00013836,2]
[423332802,1780061438000,-150.0,0.00013752,2]
[423332919,1780061439000,-181.7845848,0.000148,2]
[423332931,1780061439000,-181.7845848,0.0001485,2]
[423332913,1780061439000,-153.0,0.0001476,2]
[423332922,1780061439000,-2200.0,0.000148,5]
[423332928,1780061439000,-150.0,0.0001481,2]
[423332924,1780061439000,-400.0,0.000148,5]
[423332929,1780061439000,-25000.0,0.00014847,3]
[423332954,1780061439000,-22142.45254127,0.000149,2]
[423332935,1780061439000,-25000.0,0.00014865,3]
[423332938,1780061439000,-25000.0,0.00014874,3]
[423332934,1780061439000,-25000.0,0.00014856,3]
[423332940,1780061439000,-25000.0,0.00014882,3]
[423332951,1780061439000,-25000.0,0.000149,3]
[423332915,1780061439000,-2000.0,0.0001477,2]
[423332926,1780061439000,-1730.39,0.00014801,2]
[423332917,1780061439000,-977.86,0.0001477,2]
[423332881,1780061439000,-2000.0,0.00014612,2]
[423332909,1780061439000,-972.18,0.00014733,2]
[423332880,1780061439000,-150.0,0.00014612,2]
[423332883,1780061439000,-500.0,0.00014633,2]
[423332885,1780061439000,-150.0,0.00014634,2]
[423332888,1780061439000,-6117.08347444,0.00014634,2]
[423332890,1780061439000,-11493.82669908,0.00014634,2]
[423332897,1780061439000,-2000.0,0.00014677,2]
[423332911,1780061439000,-1545.0,0.0001476,2]
[423332908,1780061439000,-150.0,0.00014722,2]
[423332892,1780061439000,-2000.0,0.00014652,2]
[423332902,1780061439000,-1146.85,0.00014677,2]
[423332894,1780061439000,-333.24,0.00014652,2]
[423332900,1780061439000,-2000.0,0.00014677,2]
[423332904,1780061439000,-2200.0,0.000147,5]
[423332905,1780061439000,-400.0,0.000147,5]
[423332896,1780061439000,-2000.0,0.00014677,2]
[423332956,1780061439000,-6545.86279996,0.000149,2]
[423332947,1780061439000,-6117.08347444,0.000149,2]
[423332942,1780061439000,-1730.39,0.00014883,2]
[423333014,1780061439000,-322.79623592,0.00015,2]
[423333026,1780061439000,-2480.69075194,0.00015,2]
[423333011,1780061439000,-305.153193,0.00015,2]
[423332993,1780061439000,-222.44433604,0.00014999,2]
[423332995,1780061439000,-300.0,0.00014999,2]
[423332999,1780061439000,-300.0,0.00014999,2]
[423333006,1780061439000,-808.43,0.00015,2]
[423333008,1780061439000,-5622531.06104804,0.00015,2]
[423333004,1780061439000,-13446866.96270884,0.00015,2]
[423333002,1780061439000,-300.0,0.00014999,2]
[423333001,1780061439000,-300.0,0.00014999,2]
[423332991,1780061439000,-164.65220892,0.00014999,2]
[423332989,1780061439000,-500.0,0.00014999,2]
[423332985,1780061439000,-500.0,0.00014999,2]
[423332983,1780061439000,-500.0,0.00014999,2]
[423332997,1780061439000,-300.0,0.00014999,2]
[423332971,1780061439000,-150.0,0.00014986,2]
[423332975,1780061439000,-168.26165718,0.00014986,2]
[423332944,1780061439000,-25000.0,0.00014891,3]
[423332945,1780061439000,-150.0,0.00014898,2]
[423332963,1780061439000,-400.0,0.000149,5]
[423332960,1780061439000,-181.7845848,0.000149,2]
[423332962,1780061439000,-1380.98990592,0.000149,2]
[423332949,1780061439000,-2200.0,0.000149,5]
[423332958,1780061439000,-11493.82669908,0.000149,2]
[423332967,1780061439000,-150.0,0.00014985,2]
[423332981,1780061439000,-500.0,0.00014999,2]
[423332965,1780061439000,-1730.39,0.00014965,2]
[423332977,1780061439000,-500.0,0.00014999,2]
[423332979,1780061439000,-500.0,0.00014999,2]
[423332969,1780061439000,-150.0,0.00014986,2]
[423332973,1780061439000,-150.0,0.00014986,2]
[423332987,1780061439000,-500.0,0.00014999,2]
[423333225,1780061443000,-38.82415224,0.00015,2]
[423333226,1780061443000,-587.84337113,0.00015,2]
[423333224,1780061443000,-184.07398737,0.0001499,2]
[423333222,1780061443000,-184.07398737,0.00012597,2]
[423333223,1780061443000,-184.07398737,0.0001499,2]
[423333235,1780061444000,-133732.11015312,0.00015,2]
[423333236,1780061444000,-1346.23341782,0.00015,2]
[423333240,1780061445000,-6119.76843726,0.00015,2]
[423333239,1780061445000,-19228.42156274,0.00010795,2]
[423333238,1780061445000,-2995.65613726,0.00010795,2]
[423333244,1780061446000,-1344.56867385,0.00014898,2]
[423333242,1780061446000,-729.8,0.00014898,2]
[423333241,1780061446000,-2696.68867472,0.00014898,2]
[423333247,1780061461000,300.0,0.00010287,2]
[423333249,1780061580000,2664.13329245,0.00028082,120]
[423333250,1780061608000,500.0,0.00027018,120]
[423333251,1780061635000,700.0,0.00028082,120]
[423333254,1780061700000,1000.0,0.00027397,120]
[423333255,1780062016000,1000.0,0.00027397,120]
[423333256,1780062074000,-113.88237948,0.00010693,2]
[423333257,1780062075000,1020.529,0.00028,120]
[423333258,1780062099000,-93.05881026,0.00010693,2]
[423333259,1780062152000,-250.0,0.00010694,2]
[423333260,1780062206000,-404.1171,0.00010695,2]
[423333261,1780062260000,-250.0,0.00010737,2]
[423333262,1780062277000,200.0,0.00028082,120]
[423333263,1780062313000,-2570.29411869,0.00010779,2]
[423333265,1780062338000,-121.15115202,0.00010779,2]
[423333266,1780062391000,-215.5484138,0.00010779,2]
[423333267,1780062445000,-500.0,0.00010784,2]
[423333269,1780062447000,-62.91478121,0.00010784,2]
[423333268,1780062447000,-500.0,0.00010784,2]
[423333270,1780062482000,300.0,0.00010783,2]
[423333271,1780062484000,150.0,0.00010783,2]
[423333274,1780062541000,1000.0,0.00028081,120]
[423333275,1780062548000,500.0,0.00010679,2]
[423333276,1780062586000,906.54076736,0.00010784,2]
[423333320,1780062632000,-3702.0,0.00011212,2]
[423333317,1780062632000,-441.06,0.00011156,2]
[423333318,1780062632000,-549.0,0.00011157,2]
[423333314,1780062632000,-500.0,0.00011052,2]
[423333309,1780062632000,-441.06,0.00011036,2]
[423333315,1780062632000,-441.06,0.00011096,2]
[423333313,1780062632000,-2489.58,0.00011052,2]
[423333332,1780062632000,-5848.51784636,0.00011229,2]
[423333316,1780062632000,-2997.17,0.000111,2]
[423333328,1780062632000,-4284.0,0.00011229,2]
[423333322,1780062632000,-441.06,0.00011216,2]
[423333326,1780062632000,-240.0,0.00011229,2]
[423333324,1780062632000,-216.91,0.00011217,2]
[423333310,1780062632000,-2919.98,0.00011045,2]
[423333335,1780062632000,-9161.0,0.00011264,2]
[423333333,1780062632000,-161.0,0.00011244,2]
[423333340,1780062632000,-341.0,0.00011277,2]
[423333338,1780062632000,-441.06,0.00011276,2]
[423333342,1780062632000,-1125.0,0.00011281,2]
[423333352,1780062632000,-2000.0,0.0001144,2]
[423333354,1780062632000,-320.0,0.0001144,2]
[423333330,1780062632000,-172.0,0.00011229,2]
[423333306,1780062632000,-441.06,0.00010976,2]
[423333303,1780062632000,-209.09056759,0.00010863,2]
[423333308,1780062632000,-289.63,0.00011026,2]
[423333356,1780062632000,-441.06,0.00011457,2]
[423333286,1780062632000,-1533.58,0.00010644,2]
[423333287,1780062632000,-7159.96448252,0.000107,2]
[423333288,1780062632000,-293.45923264,0.00010784,2]